Cogmind - Beta 15 --- EXPLORER MODE // 2025.07.06 @ 15:37:15 // Winter2019/RPGLIKE Player: User15V Result: Self-destructed Performance ------------- Evolutions (0) 0 Regions Visited (3) 600 Robots Destroyed (20) 100 Value Destroyed (640) 640 Prototype IDs (19) 380 Alien Tech Used (0) 0 Bonus (300) 300 TOTAL SCORE: 2020 Bonus ------- Registered with UFD 300 Cogmind --------- Core Integrity 600/600 Matter 280/300 Energy 240/240 System Corruption 0% Temperature Cool (0) Movement Rolling (80) Location -7/Scraptown Parts ------- > --- POWER (1) -------- Nuclear Core > --- PROPULSION (3) --- Wheel Wheel Wheel > --- UTILITY (3) ------ Subdweller Optics Advanced Terrain Scanner > --- WEAPON (2) ------- Powered Cannon > --- INVENTORY (4) ---- Battle Rifle Battle Cannon Peak State ------------ > --- POWER ------------ Subdweller Power Source Light Nuclear Core > --- PROPULSION ------- Wheel Wheel Wheel > --- UTILITY ---------- Subdweller Optics Improved Terrain Scanner Advanced Terrain Scanner > --- WEAPON ----------- Powered Cannon > --- INVENTORY -------- Battle Rifle Battle Cannon [Rating: 32] Favorites ----------- Power Light Ion Engine Engine Light Ion Engine Power Core Light Nuclear Core Propulsion Wheel Leg Aluminum Leg Wheel Wheel Utility Improved Terrain Scanner Device Improved Terrain Scanner Processor Targeting Computer Protection Scrap Shield Weapon Powered Cannon Energy Gun Medium Laser Energy Cannon Powered Cannon Ballistic Gun Battle Rifle Ballistic Cannon Battle Cannon Special Weapon Mining Laser Build | -11 -10 -10 -7 ------- Run | Yrd Mat Sub Scr Slots Evolved 5 | 5 . . . Power . | . . . . Propulsion 2 | 2 . . . Utility 2 | 2 . . . Weapon 1 | 1 . . . Parts Attached 22 | 12 . 8 2 Power 4 | 1 . 2 1 Engine 2 | 1 . 1 . Core 2 | . . 1 1 Reactor . | . . . . Propulsion 5 | 5 . . . Treads . | . . . . Leg 2 | 2 . . . Wheel 3 | 3 . . . Hover . | . . . . Flight . | . . . . Utility 7 | 4 . 2 1 Device 3 | 1 . 1 1 Storage . | . . . . Processor 2 | 2 . . . Hackware . | . . . . Protection 2 | 1 . 1 . Artifact . | . . . . Weapon 6 | 2 . 4 . Energy Gun 1 | 1 . . . Energy Cannon 1 | . . 1 . Ballistic Gun 2 | 1 . 1 . Ballistic Cannon 1 | . . 1 . Launcher . | . . . . Special Weapon 1 | . . 1 . Impact Weapon . | . . . . Slashing Weapon . | . . . . Piercing Weapon . | . . . . Special Melee Weapon . | . . . . Unidentified Prototypes . | . . . . Parts Lost 1 | . . 1 . Power . | . . . . Propulsion . | . . . . Utility 1 | . . 1 . Weapon . | . . . . Highest Loss Streak 1 | . . 1 . To Critical Strikes . | . . . . Average Backups 1 | . 1 1 2 Power . | . . . . Propulsion . | . . . . Utility . | . . . . Weapon 1 | . 1 1 2 Tool/Special . | . . . . Unused Backups . | . . . . Power . | . . . . Propulsion . | . . . . Utility . | . . . . Weapon . | . . . . Tool/Special . | . . . . Average Slot Usage (%) 86 | . 100 89 77 Engine 5 | . 11 7 2 Core 6 | . . 4 10 Wheel 32 | . 33 32 32 Device 15 | . 11 12 21 Processor 2 | . 11 3 . Protection 6 | . 11 9 . Energy Cannon 4 | . . 1 10 Ballistic Gun 7 | . 11 11 . Ballistic Cannon 3 | . . 5 . Peak Build Rating 32 | 11 11 27 32 Average Rating 19 | 7 11 17 27 On Entrance 12 | . 11 11 27 Naked Turns . | . . . . Heaviest Build 33 | 11 11 33 22 Greatest Support 30 | 30 30 30 30 Greatest Overweight (x) 3 | 3 . 1 . Average Overweight (x) . | . . . . Largest Inventory Capacity 4 | 4 4 4 4 Average Capacity 4 | 4 4 4 4 Most Carried 4 | 4 1 4 3 Average Carried 1 | . 1 1 2 Final Capacity 4 | 4 4 4 4 Final Carried 2 | 1 1 2 2 Class Distribution -------------------- 30% | Scavenger-Mutant 29% | Hacker-Mutant 24% | Hacker-Skirmisher 15% | Scavenger-Skirmisher Dominant Class ---------------- Hacker-Mutant | -10/Materials Scavenger-Mutant | -10/Subcaves Hacker-Skirmisher | -7/Scraptown Resources | -11 -10 -10 -7 ----------- Run | Yrd Mat Sub Scr Matter Collected 817 | 334 . 483 . Remotely . | . . . . Salvage Created 523 | 132 . 391 . Parts 41 | 11 . 30 . Haulers Intercepted . | . . . . Recyclers Shooed . | . . . . Parts Field Recycled . | . . . . Retrieved Matter . | . . . . Parts Self-Destructed . | . . . . Prevented . | . . . . Kills | -11 -10 -10 -7 ------- Run | Yrd Mat Sub Scr Combat Hostiles Destroyed 15 | . . 15 . Guns 6 | . . 6 . Cannons 7 | . . 7 . Classes Destroyed 5 | 2 . 3 . Tunneler 4 | 4 . . . Recycler 1 | 1 . . . Grunt 2 | . . 2 . Sentry 1 | . . 1 . Subdweller 12 | . . 12 . Best Kill Streak 3 | 3 . 3 . Combat Bots Only 3 | . . 3 . Max Kills in Single Turn 1 | 1 . 1 . Gunslinging . | . . . . Exploded . | . . . . Melee . | . . . . Uniques/NPCs Destroyed . | . . . . Combat | -11 -10 -10 -7 -------- Run | Yrd Mat Sub Scr Hostile Shots Fired 84 | . . 84 . Missed 22 | . . 22 . Hits 62 | . . 62 . Projectile 62 | . . 62 . Critical Strikes 2 | . . 2 . Damage Taken 775 | . . 775 . Core 483 | . . 483 . Absorbed by Shields . | . . . . Redirected to Core 409 | . . 409 . Ignored by Resistances 463 | . . 463 . Core Remaining (%) 100 | 100 . . . Volleys Fired 88 | 8 . 80 . Largest 2 | 2 . 2 . Hottest 100 | 70 . 100 . Shots Fired 147 | 16 . 131 . Gun 77 | 16 . 61 . Cannon 68 | . . 68 . Launcher . | . . . . Special 2 | . . 2 . Kinetic 110 | 8 . 102 . Thermal 37 | 8 . 29 . Explosive . | . . . . Electromagnetic . | . . . . Robot Hit Streak 39 | 13 . 39 . Robot Miss Streak 1 | . . 1 . Penetration Max . | . . . . Secondary Targets . | . . . . Shots Hit Robots 107 | 13 . 94 . Core Hits 30 | 6 . 24 . Critical Kills 2 | . . 2 . Critical Parts Destroyed . | . . . . Critical Strikes 5 | 1 . 4 . Burn 1 | 1 . . . Meltdown 2 | . . 2 . Destroy 1 | . . 1 . Blast 1 | . . 1 . Melee Attacks . | . . . . Impact . | . . . . Slashing . | . . . . Piercing . | . . . . Sneak Attacks . | . . . . Combat Hostiles . | . . . . Follow-up Attacks . | . . . . Damage Inflicted 1934 | 171 . 1763 . Guns 861 | 171 . 690 . Cannons 1073 | . . 1073 . Explosions . | . . . . Melee . | . . . . Ramming . | . . . . Kinetic 1254 | 81 . 1173 . Thermal 680 | 90 . 590 . Explosive . | . . . . Electromagnetic . | . . . . Impact . | . . . . Slashing . | . . . . Piercing . | . . . . Highest Corruption . | . . . . Average Corruption . | . . . . Corruption Purged . | . . . . Corruption Blocked . | . . . . Overload Shots . | . . . . Overflow Damage 7 | . . 7 . Projectiles 7 | . . 7 . Explosions . | . . . . Melee . | . . . . Knockbacks 10 | . . 10 . Impact . | . . . . Kinetic 10 | . . 10 . Secondary . | . . . . Self-Inflicted Damage . | . . . . Shots . | . . . . Rammed . | . . . . Targets Rammed . | . . . . Kicked . | . . . . Crushed . | . . . . Highest Temperature 188 | 90 . 188 . Average Temperature 32 | 35 . 30 . Received Heat Transfer 418 | . . 418 . Siege Activations . | . . . . Martial Activations . | . . . . Shielding Activations . | . . . . Robots Disrupted . | . . . . Combat Hostiles . | . . . . Robots Corrupted . | . . . . Combat Hostiles . | . . . . Parts Fried . | . . . . Impact Corruptions . | . . . . Robots Melted 2 | . . 2 . Combat Hostiles 2 | . . 2 . Parts Melted 3 | 1 . 2 . Heat Transferred 333 | 333 . . . Parts Sabotaged . | . . . . Parts Stolen . | . . . . Parts Stripped . | . . . . Power Chain Reactions . | . . . . Alert | -11 -10 -10 -7 ------- Run | Yrd Mat Sub Scr Maximum Alert Level . | . . . . Low Security (%) 100 | 100 100 . . Level 1 . | . . . . Level 2 . | . . . . Level 3 . | . . . . Level 4 . | . . . . Level 5 . | . . . . High Security . | . . . . Max Security . | . . . . Peak Influence 15 | 15 . . . Initial . | . . . . Average . | 1 . . . Influence Increases 95 | 25 . 70 . Destroy 0b10 Robot/C 60 | . . 60 . Destroy 0b10 Robot/NC 25 | 25 . . . Destroy Leader 10 | . . 10 . Influence Decreases 95 | 25 . 70 . Time Decay 95 | 25 . 70 . Squads Dispatched . | . . . . Investigation . | . . . . Extermination . | . . . . Reinforcement . | . . . . Assault . | . . . . Garrison . | . . . . Intercept . | . . . . Searches Triggered . | . . . . Construction Impeded . | . . . . Haulers Reinforced . | . . . . Active Scanning Responses . | . . . . Cargo Convoy Interrupts . | . . . . Stealth | -11 -10 -10 -7 --------- Run | Yrd Mat Sub Scr Distress Signals . | . . . . Communications Jammed . | . . . . Distress Signals . | . . . . Times Spotted 15 | . . 15 . Peak Tracking Total 3 | . . 3 . Tactical Retreats . | . . . . Traps | -11 -10 -10 -7 ------- Run | Yrd Mat Sub Scr Traps Triggered . | . . . . Indirectly . | . . . . Trap Hack Attempts . | . . . . Triggered . | . . . . Disarmed . | . . . . Reprogrammed . | . . . . Reused . | . . . . Traps Extracted . | . . . . Installed . | . . . . Triggered . | . . . . Machines | -11 -10 -10 -7 ---------- Run | Yrd Mat Sub Scr Machines Disabled . | . . . . Max in Single Turn . | . . . . Machines Repaired . | . . . . Machines Dismantled . | . . . . Machines Sabotaged . | . . . . Overloaded Fab Kills . | . . . . Hacking | -11 -10 -10 -7 --------- Run | Yrd Mat Sub Scr Machines Accessed 3 | . . 1 2 Terminals . | . . . . Fabricators . | . . . . Repair Stations . | . . . . Recycling Units . | . . . . Scanalyzers . | . . . . Garrison Access . | . . . . Total Hacks 8 | . . 1 7 Successful 8 | . . 1 7 Failed . | . . . . Catastrophic . | . . . . Database Lockouts . | . . . . Manual . | . . . . Terminals . | . . . . Fabricators . | . . . . Repair Stations . | . . . . Recycling Units . | . . . . Scanalyzers . | . . . . Garrison Access . | . . . . Terminal Hacks 8 | . . 1 7 Robot Analysis 6 | . . . 6 Proto ID Catalog 2 | . . 1 1 Fabricator Hacks . | . . . . Repair Station Hacks . | . . . . Recycling Unit Hacks . | . . . . Scanalyzer . | . . . . Garrison Access Hacks . | . . . . Unauthorized Hacks . | . . . . Terminals . | . . . . Fabricators . | . . . . Repair Stations . | . . . . Recycling Units . | . . . . Scanalyzers . | . . . . Garrison Access . | . . . . Data Cores Recovered . | . . . . Used . | . . . . Hacking Detections . | . . . . Full Trace Events . | . . . . Feedback Events . | . . . . Feedback Blocked . | . . . . Robot Schematics Acquired . | . . . . Robots Built . | . . . . Authchips . | . . . . Time . | . . . . Total Robot Build Rating . | . . . . Part Schematics Acquired . | . . . . Parts Built . | . . . . Authchips . | . . . . Time . | . . . . Total Part Build Rating . | . . . . Parts Repaired . | . . . . Time . | . . . . Parts Recycled . | . . . . Recycled Matter . | . . . . Retrieved Matter . | . . . . Retrieved Components . | . . . . Parts Scanalyzed . | . . . . Part Schematics Acquired . | . . . . Parts Damaged . | . . . . Bothacking | -11 -10 -10 -7 ------------ Run | Yrd Mat Sub Scr Used RIF Installer . | . . . . Robots Hacked . | . . . . Non-combat . | . . . . Combat . | . . . . Robot Hacks Applied . | . . . . Relay Couplers Released . | . . . . Fabnet Peak Effective % . | . . . . Robots Rewired . | . . . . Allies Hacked . | . . . . Hacks Repelled . | . . . . Allies | -11 -10 -10 -7 -------- Run | Yrd Mat Sub Scr Total Allies . | . . . . Largest Group . | . . . . Highest-Rated Group . | . . . . Highest-Rated Ally . | . . . . Total Orders . | . . . . Ally Attacks . | . . . . Total Damage . | . . . . Kills . | . . . . Allies Corrupted . | . . . . Allies Melted . | . . . . Intel | -11 -10 -10 -7 ------- Run | Yrd Mat Sub Scr Active Infowar (turns) 1864 | 44 108 1093 619 Optics 363 | . . 161 202 Terrain 1864 | 44 108 1093 619 Robot Analysis Total 6 | . . . 6 Derelict Logs Recovered 1 | . . 1 . Drone Launches . | . . . . Drone Recoveries . | . . . . Exploration | -11 -10 -10 -7 ------------- Run | Yrd Mat Sub Scr Turns Passed 1950 | 130 108 1093 619 Spaces Moved 1682 | 81 20 815 766 Core 17 | 17 . . . Treads . | . . . . Legs 45 | 45 . . . Wheels 1620 | 19 20 815 766 Hover . | . . . . Flight . | . . . . Fastest Speed 50 | 50 80 80 80 Average Speed 81 | 99 80 80 80 Slowest Speed 200 | 200 80 95 80 Overloaded Moves . | . . . . Propulsion Burnouts . | . . . . Robots Hopped . | . . . . Potential Cave-ins . | . . . . Cave-ins Triggered . | . . . . Exploration Rate (%) 35 | 4 9 55 73 Regions Visited 3 Branch Regions 2 Pre-discovered Areas . | . . . . Known Exits Taken 2 | 1 1 . . Unknown Exits Taken 1 | . . 1 . Scrap Searched 11 | . . 7 4 Spaces Dug 3 | . . 3 . Terrain Destroyed 8 | . . 8 . Melee . | . . . . Projectile 8 | . . 8 . AOE . | . . . . Terrain Rammed . | . . . . Walls Destroyed . | . . . . Machines Disabled . | . . . . Actions | -11 -10 -10 -7 --------- Run | Yrd Mat Sub Scr Total 2130 | 115 111 1131 773 Wait 278 | . 92 186 . Move 1679 | 80 19 814 766 Hop . | . . . . Pick Up 21 | 12 . 7 2 Fast Attach 1 | 1 . . . Attach 18 | 11 . 5 2 Detach 2 | . . 2 . Swap 4 | . . 4 . Drop 12 | 3 . 6 3 Fire 88 | 8 . 80 . Melee . | . . . . Ram . | . . . . Kick . | . . . . Crush . | . . . . Escape Stasis . | . . . . Rewire . | . . . . Trap . | . . . . Miscellaneous 27 | . . 27 . Route ------- -11/Scrapyard -10/Materials (discovered 2 exits: Min / *Sub) -10/Subcaves (discovered 2 exits: *Mat / *Scr) -7/Scraptown (discovered 1 exit: Fac) History --------- Turn | Location | Event 1 | -11/Scrapyard | Upgraded with Propulsion slot (x2) 1 | -11/Scrapyard | Upgraded with Utility slot (x2) 1 | -11/Scrapyard | Upgraded with Weapon slot (x1) 10 | -11/Scrapyard | Identified exit to Materials 10 | -11/Scrapyard | Discovered exit to Materials (range 14) 131 | -11/Scrapyard | Entered Materials 152 | -10/Materials | Identified exit to Mines 152 | -10/Materials | Discovered exit to Mines (range 14) 162 | -10/Materials | Identified exit to Subcaves 162 | -10/Materials | Discovered exit to Subcaves (range 8) 239 | -10/Materials | Entered Subcaves 240 | -10/Subcaves | Approached by a straggling Scientist 275 | -10/Subcaves | Shifting Twisted Machinery released Battle Rifle 305 | -10/Subcaves | Build established: Hacker-Mutant 341 | -10/Subcaves | Learned Materials terminal intel 506 | -10/Subcaves | Shifting Twisted Machinery released Battle Cannon 699 | -10/Subcaves | A Subdweller sparked back to life 699 | -10/Subcaves | A Subdweller sparked back to life 699 | -10/Subcaves | A Subdweller sparked back to life 752 | -10/Subcaves | Found Prototype Energy Cannon 855 | -10/Subcaves | Disturbed a concealed Subdweller 874 | -10/Subcaves | Build established: Scavenger-Mutant 954 | -10/Subcaves | Visited 4L-MR0's lab 957 | -10/Subcaves | Identified Powered Cannon 1040 | -10/Subcaves | Identified exit to Materials 1040 | -10/Subcaves | Discovered exit to Materials (range 14) 1122 | -10/Subcaves | Attached Powered Cannon, gained temporary slot: Power 1284 | -10/Subcaves | Shifting Twisted Machinery released Sub. Beam Cannon 1319 | -10/Subcaves | Scientist uncovered a shortcut to Scraptown 1332 | -10/Subcaves | Entered Scraptown 1334 | -7/Scraptown | Reached level 2 1334 | -7/Scraptown | Reached level 3 1334 | -7/Scraptown | Reached level 4 1334 | -7/Scraptown | Reached level 5 1399 | -7/Scraptown | Visited Fellowship of the Rings 1414 | -7/Scraptown | Visited Comm Corps 1429 | -7/Scraptown | Visited Bundlers 1496 | -7/Scraptown | Visited Junk Repository 1503 | -7/Scraptown | Visited Junk Repository 1584 | -7/Scraptown | Visited UFD Registry 1584 | -7/Scraptown | Registered with UFD as "Autotail" 1603 | -7/Scraptown | Visited Botcube Research 1614 | -7/Scraptown | Visited Science Guys 1640 | -7/Scraptown | Visited LU-1G1's Boring Crew 1656 | -7/Scraptown | Visited Science Testing Area 1666 | -7/Scraptown | Visited Analyses Database 1684 | -7/Scraptown | Visited Observation Area 1691 | -7/Scraptown | Visited Curators Association 1716 | -7/Scraptown | Visited Research Penetration Think Tank 1735 | -7/Scraptown | Visited Scrap Suit Storage 1748 | -7/Scraptown | Visited Cartography Club 1762 | -7/Scraptown | Build established: Hacker-Skirmisher 1941 | -7/Scraptown | Identified exit to Factory 1941 | -7/Scraptown | Discovered exit to Factory (range 17) 1951 | -7/Scraptown | Self-destructed Last Messages --------------- Well... Turns out we just need to give them something more interesting to ponder than us! Just use \\FKLG and that'll keep 'em busy practically forever. Well, 25% of the Researchers out there will just shrug it off, but this is already quite helpful. Next I'll be working on a way to get them to first spit out everything they know, hehehe. 01735_ LOCAL NARROWCAST: Scrap Suit Storage. 01748_ LOCAL NARROWCAST: Cartography Club. We map, therefore we are. ZN-5BG(p): Why did we move our primary base of operations so close to 0b10 if that's where most of the Unchained have moved... The opposite direction would've suited me fine. 01941_ EXIT=FOUND: FACTORY 01945_ 1N-2UU(p): "Psst-beep! Hey Autotail, over here!" Map ----- +----------------------------------------------------+ | | | | | | | | | | | | | | | | | | | | | | | | | | | ??#????####?###?###??###??????????#??#???????????? | | ####??#????#??#????##?###?????????##?????????????? | | #???###??###??#??#?????###??#????????????????? | | ?#?####################??#???????#???????????? | | ??#"""""""""#"""""""""#??#???##??????????????? | | # ###" "#" ? "#?#?#??????????#???????? | | # ###" """ "#??????#?#??#??????????? | | # #?#" "#" "" p"##??????#?????#????????? | | # ###" """ "#" " "#?#??#?????????????????? | | # ###" "#" "##?#????#?##???????????? | | ##"""""" ""#"" """"""#???#?????#????????????? | | r ##??????#?#????#???????? | | r @###????#??#?#?#??#?#???? | | #?#???#??#????##?????#?# | | ##########"" """"#####???####?#??##??##?????? | | # ##?##?#####" $"#???##?#????#??#????###????# | | # ###########" ""#?##????#??####??#??##?#???# | | # """"""""#?#" """##???????#???#???####??#?#?? | | # " ""###" """#?#?#??#?##?#??????##?#?#??# | | " "#?#"""""""##?##?##????#?##??#?####??#? | | " " ""##########?#??#????##?????# ?? ?#??# | | " """"""""#?####??#?#?#?#??#####?## # #??##?##?# | | ##"""###############???###?### ??? ##?#???### | | " ##########################?#?#??? # ?# # ??#? | | " #""""""""""""### ##?### ####?##?# ???# | | " #" "### #?###? # ### ? ?### | | # #" "###+## "### #???##????#X# ##?###? | | # #" "#"" # "### ###?#??# ## # ?#####? | | # #" "# #" "### ####?? ???# #? ??###? | | #" #?"""#? "### ###?####### ######?## | | #" "###### "### #??## #### | | # #" "### ###?# #### | | # ### ? ############## ####?? | | # ### ################## #####??#?####### ###### | | ##?######"""" """""" | | ##?######" | | #########" | +----------------------------------------------------+ Best States ------------- Heat Dissipation 25 Energy Generation 24 Energy Capacity 260 Matter Stores 300 Matter Capacity 300 Sight Range 21 Terrain Scan Range 20 Terrain Scan Density 310 Armor Coverage 800 Resistance: KI 35 Resistance: TH 35 Resistance: EX 35 Resistance: EM 35 Resistance: I 35 Resistance: S 35 Resistance: P 35 Evasion (%) 55 Targeting Accuracy 5 Offensive Hacking 20 Item Schematics ----------------- None Robot Schematics ------------------ None Fabricated ------------ Nothing Repaired ---------- Nothing Alien Tech Used ----------------- None Achievements -------------- None Challenges ------------ None RPGLIKE | -11 -10 -10 -7 --------- Run | Yrd Mat Sub Scr Levels Raised 4 | . . . 4 XP Earned 13178 | 6000 . 1350 5828 XP Spent 5870 | 5870 . . . Upgrades 12 | 12 . . . Propulsion Slot 2 | 2 . . . Utility Slot 2 | 2 . . . Weapon Slot 1 | 1 . . . Inventory Capacity 4 | 4 . . . Terrain Scan Density 3 | 3 . . . Protomatter Created 305 | . . 305 . Integrity Restored 562 | . . 562 . Core 483 | . . 483 . Parts 79 | . . 79 . Protomatter Decayed 165 | . . 165 . Game ------ Seed LegPoweredThruster Manual? 0 Play Time 00:13:09 Cumulative 976.4 hours Start 2025.07.06 @ 15:24:24 End 2025.07.06 @ 15:37:15 Sessions 1 Manual Loads 0 Difficulty Explorer Special Mode Winter2019/RPGLIKE Game No. 268 Rogue 104 Adventurer 111 Explorer 53 Win Type - Total 46 Types 21/8/1/7/2/1/1/1/1/3 Lore% 94 Gallery% 98 Achievement% 96 Wizard Run 0 Options --------- Layout 2 ASCII 0 Keyboard 0 Movement Mouse Keybinds 0 Fullscreen 2 Font 24/Smallcaps Map View 50x44 Zoom Use 0% Tactical HUD 1 Map Filters NONE Filters NONE Steam 1 RUN: e7ece46c-9cde-406e-86ce-b52af7d2db3d